fUSD/lending_fUSD_20250606
["ID","MTS","AMOUNT","RATE_DAILY","PERIOD"]
[364729674,1749220303835,-1087.78,0.00031479,7]
[364729675,1749220303844,-596.02,0.00031479,7]
[364729676,1749220303854,-1086.7,0.00031479,7]
[364729677,1749220303864,-1926.02,0.00031479,7]
[364729678,1749220303873,-1310.18,0.00031479,7]
[364729679,1749220303882,-480.01,0.00031479,7]
[364729680,1749220303892,-971.77,0.00031479,7]
[364729681,1749220303902,-2065.59,0.00031479,7]
[364729682,1749220303912,-13307.39,0.00031479,7]
[364729683,1749220303922,-480.0,0.00031479,7]
[364729684,1749220303931,-824.21,0.00031479,7]
[364729685,1749220303941,-2178.92,0.00031479,7]
[364729686,1749220303951,-2324.9,0.00031479,7]
[364729687,1749220303960,-3945.0,0.00031479,7]
[364729688,1749220303970,-480.0,0.00031479,7]
[364729689,1749220303979,-4149.78,0.00031479,7]
[364729690,1749220303988,-3813.84,0.00031479,7]
[364729691,1749220303998,-1365.76,0.00031479,7]
[364729692,1749220304007,-984.68,0.00031479,7]
[364729693,1749220304017,-904.26,0.00031479,7]
[364729694,1749220304027,-480.0,0.00031479,7]
[364729695,1749220304036,-480.0,0.00031479,7]
[364729696,1749220304046,-4903.83,0.00031479,7]
[364729697,1749220304055,-1112.93,0.00031479,7]
[364729698,1749220304064,-813.56,0.00031479,7]
[364729699,1749220304074,-1976.97,0.00031479,7]
[364729700,1749220304084,-3642.55,0.00031479,7]
[364729701,1749220304094,-2033.72,0.00031479,7]
[364729702,1749220304103,-1600.26,0.00031479,7]
[364729703,1749220304113,-878.97,0.00031479,7]
[364729704,1749220304122,-480.0,0.00031479,7]
[364729705,1749220304132,-948.36,0.00031479,7]
[364729706,1749220304143,-10382.45,0.00031479,7]
[364729707,1749220304152,-520.79,0.00031479,7]
[364729708,1749220304162,-1399.06,0.00031479,2]
[364729709,1749220304173,-3570.9,0.00031479,7]
[364729710,1749220304183,-875.0,0.00031479,7]
[364729711,1749220304192,-1610.11,0.00031479,7]
[364729712,1749220304204,-506.97,0.00031479,7]
[364729713,1749220304214,-582.82,0.00031479,7]
[364729714,1749220304224,-5037.96,0.00031479,7]
[364729715,1749220304234,-1069.2,0.00031479,7]
[364729716,1749220304244,-1221.01,0.00031479,7]
[364729717,1749220304254,-2746.68,0.00031479,7]
[364729718,1749220304264,-1159.49,0.00031479,7]
[364729719,1749220304274,-1726.11,0.00031479,7]
[364729720,1749220304283,-343.2831287,0.00031479,7]
[364729721,1749220304293,-4017.92,0.00031479,7]
[364729722,1749220304303,-4678.49,0.00031479,7]
[364729723,1749220304313,-480.0,0.00031479,7]
[364729724,1749220304323,-1324.34,0.00031479,7]
[364729725,1749220304333,-576.09,0.00031479,7]
[364729726,1749220304343,-1000.0,0.00031479,7]
[364729727,1749220304353,-619.71,0.00031479,7]
[364729728,1749220304431,-1223.35,0.00031479,7]
[364729729,1749220304441,-480.0,0.00031479,7]
[364729730,1749220304451,-480.0,0.00031479,7]
[364729731,1749220304462,-2298.56,0.00031479,7]
[364729732,1749220304471,-1792.53,0.00031479,7]
[364729733,1749220304481,-783.46,0.00031479,7]
[364729734,1749220304491,-488.06,0.00031479,7]
[364729735,1749220304501,-480.0,0.00031479,7]
[364729736,1749220304511,-4227.26,0.00031479,7]
[364729737,1749220304520,-4126.83,0.00031479,7]
[364729738,1749220304529,-985.6,0.00031479,7]
[364729739,1749220304539,-558.35,0.00031479,7]
[364729740,1749220304550,-480.0,0.00031479,7]
[364729741,1749220304559,-1349.15,0.00031479,7]
[364729742,1749220304569,-480.0,0.00031479,7]
[364729743,1749220304578,-946.38,0.00031479,7]
[364729744,1749220304588,-480.0,0.00031479,7]
[364729745,1749220304598,-1972.33,0.00031479,7]
[364729746,1749220304607,-869.99,0.00031479,7]
[364729747,1749220304617,-1957.15,0.00031479,7]
[364729748,1749220304627,-667.66,0.00031479,7]
[364729749,1749220304636,-788.43,0.00031479,7]
[364729750,1749220304646,-480.0,0.00031479,7]
[364729751,1749220304656,-752.97,0.00031479,7]
[364729752,1749220304665,-2371.57,0.00031479,7]
[364729753,1749220304675,-480.0,0.00031479,7]
[364729754,1749220304685,-601.08,0.00031479,7]
[364729755,1749220304695,-480.0,0.00031479,7]
[364729756,1749220304705,-2258.41,0.00031479,7]
[364729757,1749220304715,-480.0,0.00031479,7]
[364729758,1749220304724,-480.0,0.00031479,7]
[364729759,1749220304734,-617.19,0.00031479,7]
[364729760,1749220304744,-957.11,0.00031479,7]
[364729761,1749220304754,-661.16,0.00031479,7]
[364729762,1749220304764,-15596.64,0.00031479,7]
[364729763,1749220304774,-1003.28,0.00031479,7]
[364729764,1749220304784,-1277.26,0.00031479,7]
[364729765,1749220304794,-846.81,0.00031479,7]
[364729766,1749220304804,-1738.04,0.00031479,7]
[364729767,1749220304813,-480.0,0.00031479,7]
[364729768,1749220304824,-2129.46,0.00031479,7]
[364729769,1749220304834,-1214.21,0.00031479,7]
[364729770,1749220304843,-820.16,0.00031479,7]
[364729771,1749220304853,-480.0,0.00031479,7]
[364729772,1749220304862,-2196.5,0.00031479,7]
[364729773,1749220304872,-923.4,0.00031479,7]
[364729774,1749220304883,-1778.19638519,0.00031479,7]
[364729775,1749220305799,-426.53840011,0.00030328,7]
[364729776,1749220307208,-250.98,0.00029245,2]
[364729777,1749220307268,-3517.13289521,0.00029245,2]
[364729778,1749220307281,-2807.46889501,0.00029245,2]
[364729779,1749220307293,-2664.76839695,0.00029245,2]
[364729780,1749220307306,-1834.31575233,0.00029245,2]
[364729781,1749220307658,-97.12599126,0.00029245,2]
[364729782,1749220307670,-4649.00238461,0.00029245,2]
[364729783,1749220307679,-231.98644538,0.00029277,2]
[364729784,1749220307691,-268.01355462,0.00029277,2]
[364729785,1749220307700,-500.0,0.00029277,2]
[364729786,1749220307712,-201.33284482,0.00029277,2]
[364729787,1749220307722,-155.19280357,0.00029277,2]
[364729788,1749220307761,-344.80719643,0.00029277,2]
[364729789,1749220307770,-279.17360165,0.00029277,2]
[364729790,1749220307780,-500.0,0.00029277,2]
[364729791,1749220307790,-500.0,0.00029277,2]
[364729792,1749220307799,-500.0,0.00029277,2]
[364729793,1749220307808,-500.0,0.00029277,2]
[364729794,1749220307818,-500.0,0.00029277,2]
[364729795,1749220307828,-500.0,0.00029277,2]
[364729796,1749220307837,-500.0,0.00029277,2]
[364729797,1749220307847,-415.75120516,0.00029277,2]
[364729798,1749220307856,-500.0,0.00029277,2]
[364729799,1749220307865,-500.0,0.00029277,2]
[364729800,1749220307875,-312.27183285,0.00029277,2]
[364729801,1749220307884,-500.0,0.00029277,2]
[364729802,1749220307893,-500.0,0.00029277,2]
[364729803,1749220307903,-500.0,0.00029277,2]
[364729804,1749220307912,-500.0,0.00029277,2]
[364729805,1749220307921,-500.0,0.00029277,2]
[364729806,1749220307930,-500.0,0.00029277,2]
[364729807,1749220307940,-500.0,0.00029277,2]
[364729808,1749220307949,-257.59815901,0.00029277,2]
[364729809,1749220307961,-500.0,0.00029277,2]
[364729810,1749220307971,-500.0,0.00029277,2]
[364729811,1749220307980,-500.0,0.00029277,2]
[364729812,1749220307990,-500.0,0.00029277,2]
[364729813,1749220307999,-500.0,0.00029277,2]
[364729814,1749220308008,-500.0,0.00029277,2]
[364729815,1749220308018,-500.0,0.00029277,2]
[364729816,1749220308027,-500.0,0.00029277,2]
[364729817,1749220308036,-500.0,0.00029277,2]
[364729818,1749220308045,-500.0,0.00029277,2]
[364729819,1749220308055,-241.59383021,0.00029277,2]
[364729820,1749220308064,-500.0,0.00029277,2]
[364729821,1749220308073,-500.0,0.00029277,2]
[364729822,1749220308082,-500.0,0.00029277,2]
[364729823,1749220308091,-500.0,0.00029277,2]
[364729824,1749220308101,-500.0,0.00029277,2]
[364729825,1749220308110,-500.0,0.00029277,2]
[364729826,1749220308119,-500.0,0.00029277,2]
[364729827,1749220308128,-500.0,0.00029277,2]
[364729828,1749220308137,-500.0,0.00029277,2]
[364729829,1749220308146,-500.0,0.00029277,2]
[364729830,1749220308155,-500.0,0.00029277,2]
[364729831,1749220308165,-500.0,0.00029277,2]
[364729832,1749220308175,-500.0,0.00029277,2]
[364729833,1749220308185,-500.0,0.00029277,2]
[364729834,1749220308194,-500.0,0.00029277,2]
[364729835,1749220308204,-500.0,0.00029277,2]
[364729836,1749220308216,-500.0,0.00029277,2]
[364729837,1749220308225,-500.0,0.00029277,2]
[364729838,1749220308235,-596.05199662,0.00029277,2]
[364729839,1749220308246,-500.0,0.00029277,2]
[364729840,1749220308256,-500.0,0.00029277,2]
[364729841,1749220308265,-500.0,0.00029277,2]
[364729842,1749220308275,-432.82258206,0.00029277,2]
[364729843,1749220308285,-500.0,0.00029277,2]
[364729844,1749220308295,-500.0,0.00029277,2]
[364729845,1749220308305,-500.0,0.00029277,2]
[364729846,1749220308315,-500.0,0.00029277,2]
[364729847,1749220308325,-500.0,0.00029277,2]
[364729848,1749220308334,-500.0,0.00029277,2]
[364729849,1749220308344,-500.0,0.00029277,2]
[364729850,1749220308353,-500.0,0.00029277,2]
[364729851,1749220308363,-500.0,0.00029277,2]
[364729852,1749220308373,-500.0,0.00029277,2]
[364729853,1749220308386,-500.0,0.00029277,2]
[364729854,1749220308398,-500.0,0.00029277,2]
[364729855,1749220308408,-500.0,0.00029277,2]
[364729856,1749220308418,-500.0,0.00029277,2]
[364729857,1749220308427,-500.0,0.00029277,2]
[364729858,1749220308438,-500.0,0.00029277,2]
[364729859,1749220308447,-500.0,0.00029277,2]
[364729860,1749220308459,-500.0,0.00029277,2]
[364729861,1749220308470,-500.0,0.00029277,2]
[364729862,1749220308480,-500.0,0.00029277,2]
[364729863,1749220308490,-500.0,0.00029277,2]
[364729864,1749220308499,-500.0,0.00029277,2]
[364729865,1749220308509,-500.0,0.00029277,2]
[364729866,1749220308518,-500.0,0.00029277,2]
[364729867,1749220308528,-500.0,0.00029277,2]
[364729868,1749220308538,-500.0,0.00029277,2]
[364729869,1749220308547,-500.0,0.00029277,2]
[364729870,1749220308556,-500.0,0.00029277,2]
[364729871,1749220308566,-500.0,0.00029277,2]
[364729872,1749220308575,-500.0,0.00029277,2]
[364729873,1749220308586,-235.40817548,0.00029817,2]
[364729874,1749220308596,-151.0,0.0003,7]
[364729875,1749220308606,-151.0,0.00030046,7]
[364729876,1749220308615,-857.309,0.00030046,2]
[364729877,1749220308625,-516.91,0.00030164,7]
[364729878,1749220308635,-151.0,0.00030164,7]
[364729879,1749220308644,-151.0,0.00030164,7]
[364729880,1749220308654,-480.0,0.00030164,7]
[364729881,1749220308663,-480.0,0.00030164,7]
[364729882,1749220308673,-480.0,0.00030164,7]
[364729883,1749220308683,-151.0,0.00030307,7]
[364729884,1749220308694,-8951.72159989,0.00030328,7]
[364729885,1749220308704,-480.0,0.00030328,7]
[364729886,1749220308715,-151.0,0.00030328,7]
[364729887,1749220308724,-244.741036,0.000304,7]
[364729888,1749220308735,-506.04176666,0.00030493,7]
[364729889,1749220308744,-9378.26,0.00030493,7]
[364729890,1749220308754,-347.14,0.00030493,7]
[364729891,1749220308766,-9378.26,0.00030657,7]
[364729892,1749220308775,-9378.26,0.00030821,7]
[364729893,1749220308785,-1107.18,0.00030821,7]
[364729894,1749220308795,-9378.26,0.00030986,7]
[364729895,1749220308804,-1107.18,0.00030986,7]
[364729896,1749220308814,-9378.26,0.0003115,7]
[364729897,1749220308823,-1107.18,0.0003115,7]
[364729898,1749220308832,-480.0,0.00031315,7]
[364729899,1749220308842,-9378.26,0.00031315,7]
[364729900,1749220308851,-1107.18,0.00031315,7]
[364729901,1749220308861,-682.87361481,0.00031479,7]
[364729902,1749220308870,-2342.28,0.00031479,7]
[364729903,1749220308879,-1254.9,0.00031479,7]
[364729904,1749220308889,-480.0,0.00031479,7]
[364729905,1749220308899,-2121.81,0.00031479,7]
[364729906,1749220308908,-1793.96,0.00031479,7]
[364729907,1749220308919,-896.54,0.00031479,7]
[364729908,1749220308928,-2687.86,0.00031479,7]
[364729909,1749220308937,-480.0,0.00031479,7]
[364729910,1749220308947,-979.7,0.00031479,7]
[364729911,1749220308956,-761.13,0.00031479,2]
[364729912,1749220308967,-820.24,0.00031479,7]
[364729913,1749220308977,-873.83,0.00031479,7]
[364729914,1749220308986,-1677.25,0.00031479,7]
[364729915,1749220308997,-1293.09,0.00031479,7]
[364729916,1749220309006,-529.01,0.00031479,7]
[364729917,1749220309016,-1068.09,0.00031479,7]
[364729918,1749220309025,-787.96,0.00031479,7]
[364729919,1749220309035,-1242.86,0.00031479,7]
[364729920,1749220309045,-11034.26,0.00031479,7]
[364729921,1749220309054,-564.91,0.00031479,7]
[364729922,1749220309064,-480.0,0.00031479,7]
[364729923,1749220309073,-937.81,0.00031479,2]
[364729924,1749220309083,-480.0,0.00031479,7]
[364729925,1749220309093,-480.0,0.00031479,7]
[364729926,1749220309102,-671.61,0.00031479,7]
[364729927,1749220309112,-699.69,0.00031479,7]
[364729928,1749220309121,-2147.96,0.00031479,7]
[364729929,1749220309131,-569.84,0.00031479,7]
[364729930,1749220309140,-806.66,0.00031479,7]
[364729931,1749220309149,-720.25,0.00031479,7]
[364729932,1749220309158,-1417.78,0.00031479,7]
[364729933,1749220309167,-1409.97,0.00031479,7]
[364729934,1749220309178,-1915.93,0.00031479,7]
[364729935,1749220309187,-1184.01,0.00031479,7]
[364729936,1749220309197,-1233.97,0.00031479,7]
[364729937,1749220309208,-480.0,0.00031479,7]
[364729938,1749220309218,-480.0,0.00031479,7]
[364729939,1749220309227,-480.0,0.00031479,7]
[364729940,1749220309237,-480.0,0.00031479,7]
[364729941,1749220309246,-480.0,0.00031479,7]
[364729942,1749220309256,-9378.26,0.00031479,7]
[364729943,1749220309266,-1107.18,0.00031479,7]
[364729944,1749220309275,-1005.68853577,0.00031486,25]
[364729945,1749220309285,-1000.0,0.0003151,7]
[364729946,1749220309294,-1000.0,0.0003151,7]
[364729947,1749220309304,-500.0,0.0003152,38]
[364729948,1749220309314,-463.1873695,0.00031521,2]
[364729949,1749220309324,-955.21187,0.0003156,2]
[364729950,1749220309333,-2500.0,0.00031564,5]
[364729951,1749220309343,-2500.0,0.00031564,5]
[364729952,1749220309353,-2222.878919,0.00031643,7]
[364729953,1749220309362,-2069.069336,0.00031643,7]
[364729954,1749220309372,-617.81,0.00031643,7]
[364729955,1749220309382,-480.0,0.00031643,7]
[364729956,1749220309396,-480.0,0.00031643,7]
[364729957,1749220309406,-1997.23,0.00031643,7]
[364729958,1749220309415,-480.0,0.00031643,7]
[364729959,1749220309424,-847.34,0.00031643,7]
[364729960,1749220309434,-480.0,0.00031643,7]
[364729961,1749220309443,-480.0,0.00031643,7]
[364729962,1749220309453,-480.0,0.00031643,7]
[364729963,1749220309464,-557.72,0.00031643,7]
[364729964,1749220309474,-541.96468985,0.00031643,7]
[364729965,1749220309484,-364.24957182,0.00031643,7]
[364729966,1749220309493,-681.93,0.00031643,7]
[364729967,1749220309502,-480.0,0.00031643,7]
[364729968,1749220309511,-480.0,0.00031643,7]
[364729969,1749220309521,-683.06,0.00031643,7]
[364729970,1749220309530,-626.84067131,0.00031643,7]
[364729971,1749220309539,-480.0,0.00031643,7]
[364729972,1749220309548,-504.02,0.00031643,7]
[364729973,1749220309557,-699.24,0.00031643,7]
[364729974,1749220309567,-480.0,0.00031643,7]
[364729975,1749220309579,-480.0,0.00031643,7]
[364729976,1749220309589,-480.0,0.00031643,7]
[364729977,1749220309601,-819.51,0.00031643,7]
[364729978,1749220309611,-480.0,0.00031643,7]
[364729979,1749220309620,-480.0,0.00031643,7]
[364729980,1749220309630,-979.25,0.00031643,7]
[364729981,1749220309640,-613.49,0.00031643,7]
[364729982,1749220309650,-480.0,0.00031643,7]
[364729983,1749220309659,-480.0,0.00031643,7]
[364729984,1749220309668,-1135.81,0.00031643,7]
[364729985,1749220309678,-480.0,0.00031643,7]
[364729986,1749220309689,-504.16,0.00031643,7]
[364729987,1749220309698,-480.0,0.00031643,7]
[364729988,1749220309709,-480.0,0.00031643,7]
[364729989,1749220309718,-741.75,0.00031643,7]
[364729990,1749220309729,-480.0,0.00031643,7]
[364729991,1749220309739,-830.77,0.00031643,7]
[364729992,1749220309748,-480.0,0.00031643,7]
[364729993,1749220309757,-480.0,0.00031643,7]
[364729994,1749220309767,-843.49,0.00031643,7]
[364729995,1749220309777,-480.0,0.00031643,7]
[364729996,1749220309786,-318.48829482,0.00031643,7]
[364729997,1749220309796,-480.0,0.00031643,7]
[364729998,1749220309806,-2600.34,0.00031643,7]
[364729999,1749220309815,-620.62,0.00031643,7]
[364730000,1749220309824,-1342.16,0.00031643,7]
[364730001,1749220309833,-847.94,0.00031643,7]
[364730002,1749220309842,-675.47,0.00031643,30]
[364730003,1749220309851,-507.4,0.00031643,7]
[364730004,1749220309860,-480.0,0.00031643,7]
[364730005,1749220309869,-621.25,0.00031643,7]
[364730006,1749220309878,-694.31,0.00031643,7]
[364730007,1749220309888,-480.0,0.00031643,7]
[364730008,1749220309897,-480.0,0.00031643,7]
[364730009,1749220309907,-480.0,0.00031643,7]
[364730010,1749220309916,-480.0,0.00031643,7]
[364730011,1749220309925,-480.0,0.00031643,7]
[364730012,1749220309935,-529.44,0.00031643,7]
[364730013,1749220309944,-737.4,0.00031643,7]
[364730014,1749220309955,-480.0,0.00031643,7]
[364730015,1749220309965,-721.19,0.00031643,7]
[364730016,1749220309975,-1441.03,0.00031643,7]
[364730017,1749220309984,-1003.2,0.00031643,7]
[364730018,1749220309993,-480.0,0.00031643,7]
[364730019,1749220310003,-480.0,0.00031643,7]
[364730020,1749220310012,-1057.7,0.00031643,7]
[364730021,1749220310021,-480.0,0.00031643,7]
[364730022,1749220310030,-480.0,0.00031643,7]
[364730023,1749220310040,-729.61,0.00031643,7]
[364730024,1749220310049,-730.84,0.00031643,7]
[364730025,1749220310058,-689.59,0.00031643,7]
[364730026,1749220310067,-1560.79,0.00031643,7]
[364730027,1749220310076,-480.0,0.00031643,7]
[364730028,1749220310086,-1787.56,0.00031643,7]
[364730029,1749220310095,-1063.57,0.00031643,7]
[364730030,1749220310104,-775.63,0.00031643,7]
[364730031,1749220310113,-1536.34,0.00031643,7]
[364730032,1749220310122,-480.0,0.00031643,7]
[364730033,1749220310131,-480.0,0.00031643,7]
[364730034,1749220310141,-480.0,0.00031643,7]
[364730035,1749220310150,-1206.52,0.00031643,7]
[364730036,1749220310159,-608.45,0.00031643,7]
[364730037,1749220310168,-920.1,0.00031643,7]
[364730038,1749220310177,-480.0,0.00031643,7]
[364730039,1749220310186,-480.0,0.00031643,7]
[364730040,1749220310196,-1792.16,0.00031643,7]
[364730041,1749220310205,-862.41,0.00031643,7]
[364730042,1749220310215,-490.39,0.00031643,7]
[364730043,1749220310225,-480.0,0.00031643,7]
[364730044,1749220310234,-1262.12,0.00031643,7]
[364730045,1749220310244,-480.0,0.00031643,7]
[364730046,1749220310255,-1912.2,0.00031643,7]
[364730047,1749220310264,-480.0,0.00031643,7]
[364730048,1749220310274,-789.07,0.00031643,7]
[364730049,1749220310283,-480.0,0.00031643,7]
[364730050,1749220310293,-486.86,0.00031643,7]
[364730051,1749220310302,-480.0,0.00031643,7]
[364730052,1749220310311,-1009.26,0.00031643,7]
[364730053,1749220310321,-1163.93,0.00031643,7]
[364730054,1749220310330,-1438.84,0.00031643,7]
[364730055,1749220310339,-480.0,0.00031643,7]
[364730056,1749220310348,-480.0,0.00031643,7]
[364730057,1749220310357,-480.0,0.00031643,7]
[364730058,1749220310367,-1570.73,0.00031643,7]
[364730059,1749220310377,-480.0,0.00031643,7]
[364730060,1749220310388,-480.0,0.00031643,7]
[364730061,1749220310401,-480.0,0.00031643,7]
[364730062,1749220310410,-528.17,0.00031643,7]
[364730063,1749220310420,-761.22,0.00031643,7]
[364730064,1749220310430,-480.0,0.00031643,7]
[364730065,1749220310439,-480.0,0.00031643,7]
[364730066,1749220310449,-1220.04,0.00031643,7]
[364730067,1749220310459,-597.43,0.00031643,7]
[364730068,1749220310470,-1362.42,0.00031643,7]
[364730069,1749220310480,-480.0,0.00031643,7]
[364730070,1749220310666,-480.0,0.00031643,7]
[364730071,1749220310676,-1189.05,0.00031643,7]
[364730072,1749220310688,-480.0,0.00031643,7]
[364730073,1749220310697,-985.5,0.00031643,7]
[364730074,1749220310707,-820.31,0.00031643,7]
[364730075,1749220310717,-572.01,0.00031643,7]
[364730076,1749220310726,-1262.79,0.00031643,7]
[364730077,1749220310736,-480.0,0.00031643,7]
[364730078,1749220310746,-2516.73,0.00031643,7]
[364730079,1749220310755,-778.34,0.00031643,7]
[364730080,1749220310764,-480.0,0.00031643,7]
[364730081,1749220310774,-839.08,0.00031643,7]
[364730082,1749220310784,-1101.15,0.00031643,7]
[364730083,1749220310794,-3214.08,0.00031643,7]
[364730084,1749220310803,-480.0,0.00031643,7]
[364730085,1749220310813,-873.96,0.00031643,7]
[364730086,1749220310822,-4607.18,0.00031643,7]
[364730087,1749220310831,-480.0,0.00031643,7]
[364730088,1749220310841,-1067.02,0.00031643,7]
[364730089,1749220310851,-612.42,0.00031643,7]
[364730090,1749220310861,-3585.66,0.00031643,7]
[364730091,1749220310871,-1186.93,0.00031643,7]
[364730092,1749220310880,-1255.39,0.00031643,7]
[364730093,1749220310889,-2364.45,0.00031643,7]
[364730094,1749220310899,-1399.55,0.00031643,7]
[364730095,1749220310910,-825.25,0.00031643,7]
[364730096,1749220310919,-1108.3,0.00031643,7]
[364730097,1749220310930,-491.87,0.00031643,7]
[364730098,1749220310939,-726.54,0.00031643,7]
[364730099,1749220310949,-2028.66,0.00031643,7]
[364730100,1749220310959,-781.47,0.00031643,7]
[364730101,1749220310969,-1466.18,0.00031643,7]
[364730102,1749220310978,-73191.22,0.00031643,7]
[364730103,1749220310988,-1031.1,0.00031643,7]
[364730104,1749220310997,-1187.36,0.00031643,7]
[364730105,1749220311007,-2308.95,0.00031643,7]
[364730106,1749220311016,-1807.35,0.00031643,7]
[364730107,1749220311026,-1648.94,0.00031643,7]
[364730108,1749220311036,-1912.7,0.00031643,7]
[364730109,1749220311046,-4297.8,0.00031643,7]
[364730110,1749220311056,-1127.05,0.00031643,7]
[364730111,1749220311066,-480.0,0.00031643,7]
[364730112,1749220311076,-1433.3,0.00031643,7]
[364730113,1749220311085,-793.28,0.00031643,7]
[364730114,1749220311095,-480.0,0.00031643,7]
[364730115,1749220311104,-845.41,0.00031643,7]
[364730116,1749220311113,-4339.46,0.00031643,7]
[364730117,1749220311122,-550.99,0.00031643,7]
[364730118,1749220311131,-480.0,0.00031643,7]
[364730119,1749220311141,-480.0,0.00031643,7]
[364730120,1749220311150,-558.97,0.00031643,7]
[364730121,1749220311160,-705.32,0.00031643,7]
[364730122,1749220311169,-638.49,0.00031643,7]
[364730123,1749220311179,-646.01,0.00031643,7]
[364730124,1749220311188,-5821.7,0.00031643,7]
[364730125,1749220311198,-1415.28,0.00031643,7]
[364730126,1749220311208,-2219.2,0.00031643,7]
[364730127,1749220311219,-2997.28,0.00031643,7]
[364730128,1749220311229,-4881.17,0.00031643,7]
[364730129,1749220311238,-1494.8,0.00031643,7]
[364730130,1749220311247,-249.23324593,0.00031643,7]
[364730131,1749220311256,-761.61,0.00031643,7]
[364730132,1749220311266,-2109.18,0.00031643,7]
[364730133,1749220311275,-1044.45,0.00031643,7]
[364730134,1749220311285,-480.0,0.00031643,7]
[364730135,1749220311295,-617.24,0.00031643,7]
[364730136,1749220311304,-1804.22,0.00031643,7]
[364730137,1749220311314,-6318.65,0.00031643,7]
[364730138,1749220311324,-776.29,0.00031643,7]
[364730139,1749220311334,-5806.79,0.00031643,7]
[364730140,1749220311344,-902.05,0.00031643,7]
[364730141,1749220311354,-480.0,0.00031643,7]
[364730142,1749220311364,-677.86,0.00031643,7]
[364730143,1749220311374,-17052.87,0.00031643,7]
[364730144,1749220311384,-1448.58,0.00031643,7]
[364730145,1749220311398,-480.0,0.00031643,7]
[364730146,1749220311407,-484.88468181,0.00031643,7]
[364730147,1749220311418,-1087.78,0.00031643,7]
[364730148,1749220311427,-596.02,0.00031643,7]
[364730149,1749220311438,-1086.7,0.00031643,7]
[364730150,1749220311447,-1926.02,0.00031643,7]
[364730151,1749220311457,-1310.18,0.00031643,7]
[364730152,1749220311469,-480.01,0.00031643,7]
[364730153,1749220311481,-971.77,0.00031643,7]
[364730154,1749220311491,-2065.59,0.00031643,7]
[364730155,1749220311500,-13307.39,0.00031643,7]
[364730156,1749220311510,-824.21,0.00031643,7]
[364730157,1749220311520,-480.0,0.00031643,7]
[364730158,1749220311530,-2178.92,0.00031643,7]
[364730159,1749220311540,-2324.9,0.00031643,7]
[364730160,1749220311550,-3945.0,0.00031643,7]
[364730161,1749220311560,-480.0,0.00031643,7]
[364730162,1749220311569,-4149.78,0.00031643,7]
[364730163,1749220311579,-3813.84,0.00031643,7]
[364730164,1749220311588,-1365.76,0.00031643,7]
[364730165,1749220311598,-984.68,0.00031643,7]
[364730166,1749220311607,-904.26,0.00031643,7]
[364730167,1749220311617,-480.0,0.00031643,7]
[364730168,1749220311627,-480.0,0.00031643,7]
[364730169,1749220311636,-4903.83,0.00031643,7]
[364730170,1749220311646,-1112.93,0.00031643,7]
[364730171,1749220311655,-813.56,0.00031643,7]
[364730172,1749220311665,-1976.97,0.00031643,7]
[364730173,1749220311675,-3642.55,0.00031643,7]